Cogmind - Beta 14 *** ADVENTURER MODE // 2024.08.13 @ 12:37:33 Player: AnotherZach Result: Destroyed by Y-54 Guardian with Gatling Laser Performance ------------- Evolutions (0) 0 Regions Visited (3) 600 Robots Destroyed (38) 190 Value Destroyed (516) 516 Prototype IDs (0) 0 Alien Tech Used (0) 0 Bonus (0) 0 TOTAL SCORE: 1306 Bonus ------- None Cogmind --------- Core Integrity 0/250 Matter 266/300 Energy 100/100 System Corruption 0% Temperature Cool (6) Movement Treading (160) Location -7/Recycling Parts ------- > --- POWER (1) -------- (None) > --- PROPULSION (2) --- Light Treads Light Treads > --- UTILITY (2) ------ Large Storage Unit > --- WEAPON (2) ------- (None) > --- INVENTORY (15) --- Light Ion Engine Subdweller Power Source Light Treads Armored Wheel Subdweller Monowheel Subdweller Monowheel Improved Cooling System Medium Matter Pod (100) Structural Scanner Medium Armor Plating Medium Armor Plating Authchip [R/Combat] Authchip [R/Combat] Authchip [Device] Peak State ------------ > --- POWER ------------ Light Ion Engine > --- PROPULSION ------- Armored Wheel Armored Wheel > --- UTILITY ---------- Disposable Heat Sink Large Storage Unit > --- WEAPON ----------- Beam Cannon Mini Grenade Launcher > --- INVENTORY -------- Light Ion Engine Subdweller Power Source Light Treads Light Treads Light Treads Armored Wheel Subdweller Monowheel Subdweller Monowheel Medium Matter Pod Structural Scanner Seismic Detector Medium Armor Plating Medium Armor Plating Mining Laser [Rating: 13] Favorites ----------- Power Ion Engine Engine Ion Engine Propulsion Armored Wheel Treads Light Treads Wheel Armored Wheel Utility Large Storage Unit Device Disposable Heat Sink Storage Large Storage Unit Weapon Assault Rifle Energy Gun EM Pulse Gun Energy Cannon Beam Cannon Ballistic Gun Assault Rifle Launcher Mini Grenade Launcher Special Weapon Mining Laser Build | -11 -10 -10 -7 ------- Run | Yrd Mat Sub Rec Slots Evolved . | . . . . Power . | . . . . Propulsion . | . . . . Utility . | . . . . Weapon . | . . . . Parts Attached 31 | 7 10 8 6 Power 4 | 1 . 1 2 Engine 4 | 1 . 1 2 Core . | . . . . Reactor . | . . . . Propulsion 8 | 2 3 1 2 Treads 2 | . . . 2 Leg . | . . . . Wheel 6 | 2 3 1 . Hover . | . . . . Flight . | . . . . Utility 9 | 2 3 4 . Device 5 | 1 1 3 . Storage 4 | 1 2 1 . Processor . | . . . . Hackware . | . . . . Protection . | . . . . Artifact . | . . . . Weapon 10 | 2 4 2 2 Energy Gun 1 | 1 . . . Energy Cannon 2 | . 1 1 . Ballistic Gun 4 | 1 2 1 . Ballistic Cannon . | . . . . Launcher 2 | . . . 2 Special Weapon 1 | . 1 . . Impact Weapon . | . . . . Slashing Weapon . | . . . . Piercing Weapon . | . . . . Special Melee Weapon . | . . . . Unidentified Prototypes . | . . . . Parts Lost 10 | . 1 3 6 Power 3 | . . 2 1 Propulsion . | . . . . Utility 1 | . . . 1 Weapon 6 | . 1 1 4 Highest Loss Streak 5 | . 1 1 5 To Critical Strikes . | . . . . Average Slot Usage (%) 97 | . 97 98 97 Engine 13 | . 14 12 12 Treads 10 | . . . 22 Wheel 17 | . 28 28 5 Device 13 | . 14 12 13 Storage 14 | . 14 15 14 Energy Gun 2 | . 7 . . Energy Cannon 7 | . . 3 13 Ballistic Gun 11 | . 16 24 1 Launcher 5 | . . . 11 Peak Build Rating 13 | 7 10 12 13 Average Rating 10 | 4 9 10 11 On Entrance 7 | . 7 10 11 Naked Turns . | . . . . Heaviest Build 31 | 15 30 31 29 Greatest Support 40 | 20 24 24 40 Greatest Overweight (x) 1 | . 1 1 1 Average Overweight (x) . | . . 1 . Largest Inventory Capacity 15 | 8 15 15 15 Average Capacity 14 | 7 14 15 15 Most Carried 15 | 7 15 15 15 Average Carried 13 | 3 12 13 13 Final Capacity 15 | 8 15 15 15 Final Carried 14 | 7 13 14 14 Class Distribution -------------------- 100% | Mutant Dominant Class ---------------- Mutant | -10/Materials Mutant | -10/Subcaves Mutant | -7/Recycling Resources | -11 -10 -10 -7 ----------- Run | Yrd Mat Sub Rec Matter Collected 912 | 281 116 188 327 Remotely . | . . . . Salvage Created 1220 | 137 326 244 513 Parts 81 | 13 33 15 20 Haulers Intercepted 1 | . 1 . . Recyclers Shooed 3 | . . . 3 Parts Field Recycled . | . . . . Retrieved Matter . | . . . . Parts Self-Destructed 11 | . . 11 . Prevented . | . . . . Kills | -11 -10 -10 -7 ------- Run | Yrd Mat Sub Rec Combat Hostiles Destroyed 18 | . 9 8 1 Guns 12 | . 7 5 . Cannons 4 | . 1 3 . AOE 2 | . 1 . 1 Classes Destroyed 10 | 2 4 2 2 Worker 2 | . 2 . . Builder 2 | . . . 2 Tunneler 4 | 3 1 . . Hauler 1 | . 1 . . Recycler 7 | 1 . . 6 Turret 1 | . . 1 . Watcher 3 | . 3 . . Swarmer 13 | . 9 4 . Sentry 1 | . . . 1 Subdweller 4 | . . 4 . Best Kill Streak 5 | 4 4 5 4 Combat Bots Only 4 | . 3 4 1 Max Kills in Single Turn 2 | 1 1 1 2 Gunslinging . | . . . . Exploded 1 | . 1 . 1 Melee . | . . . . Uniques/NPCs Destroyed . | . . . . Combat | -11 -10 -10 -7 -------- Run | Yrd Mat Sub Rec Hostile Shots Fired 299 | . 65 96 138 Missed 102 | . 17 36 49 Damage Taken 1343 | . 307 466 570 Core 252 | . 69 78 105 Absorbed by Shields . | . . . . Ignored by Resistances 435 | . 100 146 189 Core Remaining (%) 100 | 100 . . . Volleys Fired 115 | 7 50 30 28 Largest 2 | 2 2 2 2 Hottest 120 | 60 120 80 90 Shots Fired 196 | 14 83 60 39 Gun 132 | 14 69 42 7 Cannon 43 | . 1 18 24 Launcher 8 | . . . 8 Special 13 | . 13 . . Kinetic 99 | 7 43 42 7 Thermal 56 | . 14 18 24 Explosive 8 | . . . 8 Electromagnetic 33 | 7 26 . . Robot Hit Streak 28 | 11 20 28 22 Robot Miss Streak 3 | . 3 1 1 Penetration Max . | . . . . Secondary Targets 1 | . 1 . . Max Gunslinging Chain 1 | . 1 . . Shots Hit Robots 135 | 11 46 53 25 Core Hits 56 | 5 17 20 14 Critical Kills . | . . . . Critical Parts Destroyed 1 | . . 1 . Critical Strikes 2 | . 1 1 . Destroy 1 | . . 1 . Corrupt 1 | . 1 . . Melee Attacks . | . . . . Impact . | . . . . Slashing . | . . . . Piercing . | . . . . Sneak Attacks . | . . . . Combat Hostiles . | . . . . Follow-up Attacks . | . . . . Damage Inflicted 2261 | 141 682 770 668 Guns 1324 | 141 600 521 62 Cannons 585 | . 18 249 318 Explosions 352 | . 64 . 288 Melee . | . . . . Ramming . | . . . . Kinetic 967 | 64 320 521 62 Thermal 649 | . 82 249 318 Explosive 288 | . . . 288 Electromagnetic 357 | 77 280 . . Impact . | . . . . Slashing . | . . . . Piercing . | . . . . Highest Corruption . | . . . . Average Corruption . | . . . . Corruption Purged . | . . . . Corruption Blocked . | . . . . Overload Shots . | . . . . Overflow Damage 3 | . 2 . 1 Projectiles 1 | . . . 1 Explosions 2 | . 2 . . Melee . | . . . . Knockbacks . | . . . . Impact . | . . . . Kinetic . | . . . . Secondary . | . . . . Self-Inflicted Damage 78 | . 13 . 65 Shots 5 | . 1 . 4 Rammed . | . . . . Targets Rammed . | . . . . Kicked . | . . . . Crushed . | . . . . Highest Temperature 190 | . 60 20 190 Average Temperature 38 | . 23 9 54 Received Heat Transfer 486 | . . 282 204 Siege Activations . | . . . . Robots Corrupted . | . . . . Combat Hostiles . | . . . . Parts Fried 1 | . 1 . . Impact Corruptions . | . . . . Robots Melted . | . . . . Combat Hostiles . | . . . . Parts Melted 1 | . . 1 . Heat Transferred 1321 | . 137 518 666 Parts Sabotaged . | . . . . Parts Stolen . | . . . . Parts Stripped . | . . . . Power Chain Reactions 1 | . 1 . . Alert | -11 -10 -10 -7 ------- Run | Yrd Mat Sub Rec Peak Influence 210 | 20 210 . 176 Initial 58 | . 11 . 58 Average 68 | 6 97 . 53 Maximum Alert Level 1 | . 1 . . Low Security (%) 99 | 100 97 . 100 Level 1 . | . 2 . . Level 2 . | . . . . Level 3 . | . . . . Level 4 . | . . . . Level 5 . | . . . . High Security . | . . . . Max Security . | . . . . Squads Dispatched . | . . . . Investigation . | . . . . Extermination . | . . . . Reinforcement . | . . . . Assault . | . . . . Garrison . | . . . . Intercept . | . . . . Searches Triggered . | . . . . Construction Impeded . | . . . . Haulers Reinforced . | . . . . Active Scanning Responses . | . . . . Cargo Convoy Interrupts . | . . . . Stealth | -11 -10 -10 -7 --------- Run | Yrd Mat Sub Rec Distress Signals . | . . . . Communications Jammed . | . . . . Distress Signals . | . . . . Times Spotted 26 | . 12 12 2 Peak Tracking Total 6 | . 3 6 1 Tactical Retreats 1 | . . 1 . Traps | -11 -10 -10 -7 ------- Run | Yrd Mat Sub Rec Traps Triggered 1 | . 1 . . Indirectly . | . . . . Trap Hack Attempts . | . . . . Triggered . | . . . . Disarmed . | . . . . Reprogrammed . | . . . . Reused . | . . . . Traps Extracted . | . . . . Installed . | . . . . Triggered . | . . . . Machines | -11 -10 -10 -7 ---------- Run | Yrd Mat Sub Rec Machines Disabled 1 | . . . 1 Max in Single Turn 1 | . . . 1 Machines Repaired . | . . . . Machines Dismantled . | . . . . Machines Sabotaged . | . . . . Overloaded Fab Kills . | . . . . Hacking | -11 -10 -10 -7 --------- Run | Yrd Mat Sub Rec Machines Accessed 14 | . 3 . 11 Terminals 9 | . 3 . 6 Fabricators . | . . . . Repair Stations . | . . . . Recycling Units 5 | . . . 5 Scanalyzers . | . . . . Garrison Access . | . . . . Total Hacks 49 | . 7 . 42 Successful 21 | . 4 . 17 Failed 28 | . 3 . 25 Catastrophic 4 | . . . 4 Database Lockouts . | . . . . Manual 12 | . 3 . 9 Terminals 36 | . 7 . 29 Fabricators . | . . . . Repair Stations . | . . . . Recycling Units 13 | . . . 13 Scanalyzers . | . . . . Garrison Access . | . . . . Terminal Hacks 10 | . 2 . 8 Part Schematic 5 | . . . 5 Robot Schematic 2 | . . . 2 Locate Traps 1 | . 1 . . Zone Layout 2 | . 1 . 1 Fabricator Hacks . | . . . . Repair Station Hacks . | . . . . Recycling Unit Hacks 5 | . . . 5 Retrieve Components 5 | . . . 5 Scanalyzer . | . . . . Garrison Access Hacks . | . . . . Unauthorized Hacks 6 | . 2 . 4 Terminals 3 | . 2 . 1 Botnet 2 | . 1 . 1 Skim 1 | . 1 . . Fabricators . | . . . . Repair Stations . | . . . . Recycling Units 3 | . . . 3 Reject 2 | . . . 2 Tunnel 1 | . . . 1 Scanalyzers . | . . . . Garrison Access . | . . . . Data Cores Recovered . | . . . . Used . | . . . . Hacking Detections 9 | . 1 . 8 Full Trace Events 6 | . 1 . 5 Feedback Events . | . . . . Feedback Blocked . | . . . . Robot Schematics Acquired 2 | . . . 2 Robots Built . | . . . . Authchips . | . . . . Time . | . . . . Total Robot Build Rating . | . . . . Part Schematics Acquired 5 | . . . 5 Parts Built . | . . . . Authchips . | . . . . Time . | . . . . Total Part Build Rating . | . . . . Parts Repaired . | . . . . Time . | . . . . Parts Recycled . | . . . . Recycled Matter . | . . . . Retrieved Matter . | . . . . Retrieved Components 13 | . . . 13 Parts Scanalyzed . | . . . . Part Schematics Acquired . | . . . . Parts Damaged . | . . . . Bothacking | -11 -10 -10 -7 ------------ Run | Yrd Mat Sub Rec Used RIF Installer . | . . . . Robots Hacked . | . . . . Non-combat . | . . . . Combat . | . . . . Robot Hacks Applied . | . . . . Relay Couplers Released . | . . . . Fabnet Peak Effective % . | . . . . Robots Rewired . | . . . . Allies Hacked . | . . . . Hacks Repelled . | . . . . Allies | -11 -10 -10 -7 -------- Run | Yrd Mat Sub Rec Total Allies . | . . . . Largest Group . | . . . . Highest-Rated Group . | . . . . Highest-Rated Ally . | . . . . Total Orders . | . . . . Ally Attacks . | . . . . Total Damage . | . . . . Kills . | . . . . Allies Corrupted . | . . . . Allies Melted . | . . . . Intel | -11 -10 -10 -7 ------- Run | Yrd Mat Sub Rec Robot Analysis Total . | . . . . Derelict Logs Recovered 1 | . . 1 . Drone Launches . | . . . . Drone Recoveries . | . . . . Exploration | -11 -10 -10 -7 ------------- Run | Yrd Mat Sub Rec Turns Passed 2193 | 85 727 391 990 Spaces Moved 1436 | 56 519 256 605 Core 4 | 4 . . . Treads 480 | . . . 480 Legs . | . . . . Wheels 952 | 52 519 256 125 Hover . | . . . . Flight . | . . . . Fastest Speed 50 | 50 80 105 105 Average Speed 120 | 77 101 105 148 Slowest Speed 160 | 80 105 105 160 Overloaded Moves . | . . . . Propulsion Burnouts . | . . . . Robots Hopped . | . . . . Cave-ins Triggered . | . . . . Exploration Rate (%) 46 | 4 80 22 81 Regions Visited 3 Branch Regions 2 Pre-discovered Areas 1 | . . . 1 Known Exits Taken . | . . . . Unknown Exits Taken 3 | 1 1 1 . Scrap Searched . | . . . . Spaces Dug 2 | . 2 . . Terrain Destroyed 68 | . 8 . 60 Melee . | . . . . Projectile 3 | . 3 . . AOE 65 | . 5 . 60 Terrain Rammed . | . . . . Walls Destroyed . | . . . . Machines Disabled . | . . . . Actions | -11 -10 -10 -7 --------- Run | Yrd Mat Sub Rec Total 1671 | 83 613 316 659 Wait 29 | . 10 16 3 Move 1433 | 55 518 255 605 Hop . | . . . . Pick Up 46 | 14 17 5 10 Fast Attach . | . . . . Attach 20 | 7 5 3 5 Detach 1 | . 1 . . Swap 11 | . 5 5 1 Drop 16 | . 7 2 7 Fire 115 | 7 50 30 28 Melee . | . . . . Ram . | . . . . Kick . | . . . . Crush . | . . . . Escape Stasis . | . . . . Rewire . | . . . . Trap . | . . . . Miscellaneous . | . . . . Route ------- -11/Scrapyard -10/Materials (discovered 5 exits: [*Mat x2] / [*Min x2] / [*Sub]) -10/Subcaves -7/Recycling (discovered 1 exit: [*Fac]) History --------- Turn | Location | Event 24 | -11/Scrapyard | Discovered new exit (range 15) 86 | -11/Scrapyard | Entered Materials 141 | -10/Materials | Discovered new exit (range 16) 273 | -10/Materials | Discovered new exit (range 15) 300 | -10/Materials | Build established: Mutant 388 | -10/Materials | Discovered new exit (range 15) 617 | -10/Materials | Discovered new exit (range 7) 789 | -10/Materials | Discovered new exit (range 5) 813 | -10/Materials | Entered Subcaves 886 | -10/Subcaves | Learned Materials terminal intel 928 | -10/Subcaves | A swath of the cavern ceiling suddenly collapsed 1066 | -10/Subcaves | A swath of the cavern ceiling suddenly collapsed 1141 | -10/Subcaves | Discovered new exit (range 16) 1170 | -10/Subcaves | Core integrity fell below 50% 1204 | -10/Subcaves | Entered Recycling 1653 | -7/Recycling | Discovered new exit (range 16) 2172 | -7/Recycling | Core integrity fell below 20% 2194 | -7/Recycling | Destroyed by Y-54 Guardian with Gatling Laser Last Messages --------------- 01912_ R-06 Scavenger destroyed. 01990_ Connecting with Recycling Unit... >>Retrieve(Components) Retrieving 3 components... Kinecellerator Gravmag System Imp. Medium Armor Plating 02144_ U-05 Engineer destroyed. 02159_ Y-54 Guardian springs to life. 02165_ Beam Cannon destroyed. 02166_ R-06 Scavenger collects Welding Torch. 02168_ Lgt. Ion Engine destroyed. 02170_ Terminal disabled. 02171_ R-06 Scavenger collects Wheel. 02171_ Mni. Grenade Launcher destroyed. 02174_ R-06 Scavenger collects Wheel. 02178_ Disposable Heat Sink destroyed. 02181_ The unstable cave ceiling collapses. 02181_ Hvy. Missile Launcher destroyed. 02190_ The unstable cave ceiling collapses. Map ----- +----------------------------------------------------+ | ## ########+### #########+#####????????????????? | | ## #### ##### #??????????????????? | | ### #??????????????????? | | ??# """ #??????????????????? | | ??# """ #??????????????????? | | ??# """ ####"T#### #??????????????????? | | ??# ## #""#??#### ##??????????????????? | | ### # # ###?????# #??##???????????????? | | ###########?## #?# ### ##??????????? | | ########### #????# # # # #??????????? | | """" # #????# # %# #??????????? | | "T"" # #????# #??????????? | | # %#????# #??????????? | | # ####### # #??????????? | | # # # +? #??????????? | | # # """ " Y #? #??????????? | | """ # # """ T #?? #??????????? | | """"" + # """ +?? #??????????? | | """"" # # ## #???######??????????? | | """"" # # """ ## #???????????????????? | | """ # + """ ## #???????????????????? | | # # """ ## #???????????????????? | | #""T""##### # ## #???????????????????? | | #"""""#???# ########### #???????????????????? | | #######???# #????#!! ## #???????????????????? | | ??????????# ######!!!##@ ###?????????????????? | | ??????????# #?????????????????? | | ??????????# = ! != #?????????????????? | | ??????????# !! ! ! #?????????????????? | | ??????????###"Y"####"Y"#] ]#####?????????????????? | | ????????????#"""#??#"""# ]]#?????????????????????? | | ????????????#####??#########?????????????????????? | | ?????????????????????????????????????????????????? | | ?????????????????????????????????????????????????? | | | | | | | | | | | | | | | | | | | | | | | | | | | | | | | | | +----------------------------------------------------+ Best States ------------- Heat Dissipation 25 Coolant Potential 50 Energy Generation 10 Energy Capacity 250 Matter Stores 300 Matter Capacity 400 Sight Range 21 Terrain Scan Density 10 Resistance: KI 20 Resistance: TH 20 Resistance: EX 20 Resistance: EM 20 Resistance: I 20 Resistance: S 20 Resistance: P 20 Evasion (%) 44 Recoil Reduction 2 Offensive Hacking 10 Authchip Count 3 Item Schematics ----------------- Arm. Leg | -7/Recycling | Hacked System Restoration Module | -7/Recycling | Hacked Adv. Trap Extractor | -7/Recycling | Hacked Enh. Gauss Cannon | -7/Recycling | Hacked Lrn. Tractor Beam | -7/Recycling | Hacked Robot Schematics ------------------ M-28 Smith | -7/Recycling | Hacked H-55 Commando | -7/Recycling | Hacked Fabricated ------------ Nothing Alien Tech Used ----------------- None Achievements -------------- None Challenges ------------ None Game ------ Seed TrapGyrokineticTerminator Manual? 0 Play Time 00:16:26 Cumulative 585.9 hours Start 2024.08.13 @ 12:23:53 End 2024.08.13 @ 12:37:33 Sessions 1 Manual Loads 0 Difficulty Adventurer Special Mode None Game No. 117 Rogue 0 Adventurer 117 Explorer 0 Win Type - Total 7 Types 4/0/1/2/0/0/0/0/0 Lore% 69 Gallery% 80 Achievement% 71 Wizard Run 0 Options --------- Layout 2 ASCII 0 Keyboard 0 Movement Mouse Keybinds 0 Fullscreen 1 Font 24/Smallcaps Map View 50x49 Zoom Use 0% Tactical HUD 1 Map Filters NONE Filters NONE Steam 1 RUN: be1504c4-7a48-41e7-ba30-e0b521c272d9